fUST/lending_fUST_20251120
["ID","MTS","AMOUNT","RATE_DAILY","PERIOD"]
[394436047,1763571038109,-500.0,0.00012516,2]
[394436049,1763571038121,-500.0,0.00012516,2]
[394436051,1763571038131,-2673.75683372,0.00012516,2]
[394436053,1763571038140,-2673.75683372,0.00012516,2]
[394436055,1763571038151,-2673.75683372,0.00012516,2]
[394436057,1763571038161,-2673.75683372,0.00012516,2]
[394436059,1763571038171,-2673.75683372,0.00012516,2]
[394436061,1763571038182,-2673.75683372,0.00012516,2]
[394436063,1763571038193,-2673.75683372,0.00012516,2]
[394436065,1763571038203,-2673.75683372,0.00012516,2]
[394436067,1763571038213,-2673.75683372,0.00012516,2]
[394436069,1763571038223,-2673.75683372,0.00012516,2]
[394436070,1763571038233,-2673.75683372,0.00012516,2]
[394436073,1763571038243,-2673.75683372,0.00012516,2]
[394436075,1763571038253,-2673.75683372,0.00012516,2]
[394436077,1763571038263,-2673.75683372,0.00012516,2]
[394436079,1763571038273,-2673.75683372,0.00012516,2]
[394436081,1763571038283,-2673.75683372,0.00012516,2]
[394436082,1763571038293,-2673.75683372,0.00012516,2]
[394436085,1763571038303,-2673.75683372,0.00012516,2]
[394436087,1763571038313,-2673.75683372,0.00012516,2]
[394436088,1763571038322,-2673.75683372,0.00012516,2]
[394436090,1763571038332,-2673.75683372,0.00012516,2]
[394436092,1763571038341,-2673.75683372,0.00012516,2]
[394436094,1763571038352,-2673.75683372,0.00012516,2]
[394436096,1763571038361,-2673.75683372,0.00012516,2]
[394436098,1763571038375,-2673.75683372,0.00012516,2]
[394436101,1763571038386,-2673.75683372,0.00012516,2]
[394436103,1763571038398,-2673.75683372,0.00012516,2]
[394436104,1763571038407,-2673.75683372,0.00012516,2]
[394436106,1763571038417,-2673.75683372,0.00012516,2]
[394436108,1763571038429,-2673.75683372,0.00012516,2]
[394436110,1763571038438,-2673.75683372,0.00012516,2]
[394436112,1763571038448,-2673.75683372,0.00012516,2]
[394436114,1763571038458,-2673.75683372,0.00012516,2]
[394436116,1763571038468,-2673.75683372,0.00012516,2]
[394436118,1763571038479,-2673.75683372,0.00012516,2]
[394436120,1763571038489,-2673.75683372,0.00012516,2]
[394436122,1763571038499,-2673.75683372,0.00012516,2]
[394436125,1763571038509,-2673.75683372,0.00012516,2]
[394436127,1763571038519,-2673.75683373,0.00012516,2]
[394436129,1763571038529,-2673.75683373,0.00012516,2]
[394436131,1763571038538,-2673.75683373,0.00012516,2]
[394436133,1763571038549,-2673.75683373,0.00012516,2]
[394436135,1763571038558,-2673.75683373,0.00012516,2]
[394436137,1763571038568,-2673.75683373,0.00012516,2]
[394436139,1763571038577,-2673.75683373,0.00012516,2]
[394436141,1763571038587,-2673.75683371,0.00012516,2]
[394436143,1763571038596,-50000.0,0.00012516,2]
[394436145,1763571038606,-567.0,0.00012516,2]
[394436147,1763571038622,-222.60230547,0.00012516,2]
[394436148,1763571038631,-933.39939755,0.00012517,2]
[394436150,1763571038640,-500.0,0.00012518,2]
[394436153,1763571038649,-221.75110719,0.00012521,2]
[394436155,1763571038660,-151.0,0.000126,2]
[394436157,1763571038670,-3407.64052846,0.000128,2]
[394436159,1763571038679,-7642.52109325,0.000129,2]
[394436161,1763571038690,-300.0,0.00012912,2]
[394436162,1763571038703,-300.0,0.00012912,2]
[394436164,1763571038712,-300.0,0.00012912,2]
[394436166,1763571038722,-300.0,0.00012912,2]
[394436168,1763571038731,-300.0,0.00012912,2]
[394436170,1763571038740,-300.0,0.00012912,2]
[394436172,1763571038749,-300.0,0.00012912,2]
[394436174,1763571038758,-300.0,0.00012912,2]
[394436176,1763571038768,-300.0,0.00012912,2]
[394436178,1763571038777,-300.0,0.00012912,2]
[394436180,1763571038786,-300.0,0.00012912,2]
[394436182,1763571038796,-300.0,0.00012912,2]
[394436184,1763571038805,-300.0,0.00012912,2]
[394436187,1763571038815,-300.0,0.00012912,2]
[394436189,1763571038824,-300.0,0.00012912,2]
[394436191,1763571038834,-600.0,0.00012912,2]
[394436193,1763571038843,-500.0,0.00013066,2]
[394436194,1763571038854,-500.0,0.0001334,2]
[394436196,1763571038864,-151.0,0.00013597,2]
[394436199,1763571038875,-500.0,0.00013597,2]
[394436201,1763571038885,-155.39006501,0.00013597,2]
[394436203,1763571038896,-157.8498372,0.00013597,2]
[394436205,1763571038906,-151.0,0.00013597,2]
[394436207,1763571038915,-500.0,0.00013614,2]
[394436209,1763571038925,-151.0,0.00013624,2]
[394436211,1763571038935,-500.0,0.00013624,2]
[394436213,1763571038944,-205.52159326,0.00013624,2]
[394436215,1763571038955,-634.42135977,0.00013652,2]
[394436217,1763571038964,-507.87247898,0.00013673,2]
[394436219,1763571038974,-500.0,0.00013673,2]
[394436220,1763571038983,-263.70606165,0.00013673,2]
[394436227,1763571039085,-500.0,0.00013673,2]
[394436228,1763571039095,-151.0,0.00013698,2]
[394436229,1763571039105,-201.18033103,0.00013698,2]
[394436230,1763571039115,-12512.33,0.00013698,2]
[394436231,1763571039127,-12512.33,0.00013698,2]
[394436232,1763571039137,-12512.33,0.00013698,2]
[394436233,1763571039149,-12512.33,0.00013698,2]
[394436234,1763571039159,-12512.33,0.00013698,2]
[394436235,1763571039169,-12512.33,0.00013698,2]
[394436236,1763571039179,-12512.33,0.00013698,2]
[394436237,1763571039188,-12512.33,0.00013698,2]
[394436238,1763571039198,-12512.33,0.00013698,2]
[394436239,1763571039208,-12512.33,0.00013698,2]
[394436240,1763571039218,-12512.33,0.00013698,2]
[394436241,1763571039227,-12512.33,0.00013698,2]
[394436242,1763571039236,-12512.33,0.00013698,2]
[394436243,1763571039246,-12512.33,0.00013698,2]
[394436244,1763571039257,-12512.33,0.00013698,2]
[394436245,1763571039267,-12512.33,0.00013698,2]
[394436246,1763571039277,-12512.33,0.00013698,2]
[394436247,1763571039287,-12512.33,0.00013698,2]
[394436248,1763571039296,-12512.33,0.00013698,2]
[394436249,1763571039305,-12512.33,0.00013698,2]
[394436250,1763571039315,-12512.33,0.00013698,2]
[394436251,1763571039324,-12512.33,0.00013698,2]
[394436252,1763571039334,-12512.33,0.00013698,2]
[394436253,1763571039344,-12512.50644716,0.00013698,2]
[394436254,1763571039353,-500.0,0.00013698,2]
[394436255,1763571039363,-500.0,0.00013698,2]
[394436257,1763571039374,-500.0,0.00013698,2]
[394436259,1763571039384,-500.0,0.00013698,2]
[394436260,1763571039393,-500.0,0.00013698,2]
[394436261,1763571039403,-500.0,0.00013698,2]
[394436262,1763571039412,-500.0,0.00013698,2]
[394436263,1763571039421,-500.0,0.00013698,2]
[394436265,1763571039431,-500.0,0.00013698,2]
[394436266,1763571039441,-500.0,0.00013698,2]
[394436268,1763571039451,-500.0,0.00013698,2]
[394436269,1763571039463,-500.0,0.00013698,2]
[394436270,1763571039472,-500.0,0.00013698,2]
[394436271,1763571039481,-500.0,0.00013698,2]
[394436272,1763571039491,-500.0,0.00013698,2]
[394436273,1763571039501,-500.0,0.00013698,2]
[394436274,1763571039510,-500.0,0.00013698,2]
[394436275,1763571039520,-500.0,0.00013698,2]
[394436276,1763571039529,-500.0,0.00013698,2]
[394436277,1763571039541,-2023.6736416,0.00013699,2]
[394436279,1763571039549,-1000.0,0.00013699,2]
[394436281,1763571039558,-1094.151777,0.00013699,2]
[394436282,1763571039567,-151.0,0.00013725,2]
[394436283,1763571039577,-420.0,0.00013731,2]
[394436284,1763571039586,-1680.0,0.00013766,2]
[394436285,1763571039595,-163.03,0.00014086,2]
[394436287,1763571039604,-163.03,0.00014086,2]
[394436288,1763571039613,-760.83,0.00014121,2]
[394436289,1763571039625,-720.0,0.00014203,2]
[394436290,1763571039634,-501.72405648,0.00014221,2]
[394436291,1763571039643,-1000.0,0.00014221,2]
[394436292,1763571039652,-216.78453076,0.00014399,2]
[394436293,1763571039662,-262.67072045,0.00014516,2]
[394436294,1763571039674,-781.33674426,0.0001472,2]
[394436295,1763571039683,-1500.0,0.00014768,2]
[394436296,1763571039692,-3243.7577,0.00015004,2]
[394436297,1763571039702,-587.0,0.00015066,2]
[394436298,1763571039711,-216.78453076,0.00015107,2]
[394436299,1763571039721,-1377.0,0.00015143,2]
[394436300,1763571039731,-615.0873379,0.00015242,2]
[394436302,1763571039740,-2000.0,0.00015316,2]
[394436304,1763571039750,-256.85077599,0.00015326,2]
[394436306,1763571039760,-798.78059129,0.00015378,2]
[394436307,1763571039769,-160.62999567,0.00015477,2]
[394436308,1763571039779,-338.14636901,0.00015559,2]
[394436309,1763571039788,-151.0,0.000156,2]
[394436310,1763571039797,-864.0,0.00015624,2]
[394436311,1763571039807,-217.00131529,0.00015816,2]
[394436312,1763571039816,-2500.0,0.00015864,2]
[394436313,1763571039825,-2151.0,0.00016041,2]
[394436314,1763571039835,-630.0,0.00016041,2]
[394436315,1763571039844,-989.0,0.00016041,2]
[394436316,1763571039854,-461.865,0.00016041,2]
[394436317,1763571039863,-500.0,0.00016173,2]
[394436319,1763571039877,-500.0,0.00016173,2]
[394436321,1763571039886,-500.0,0.00016173,2]
[394436322,1763571039896,-500.0,0.00016173,2]
[394436324,1763571039907,-500.0,0.00016173,2]
[394436326,1763571039916,-500.0,0.00016173,2]
[394436327,1763571039926,-500.0,0.00016173,2]
[394436328,1763571039936,-500.0,0.00016173,2]
[394436329,1763571039946,-633.08843994,0.00016173,2]
[394436330,1763571039955,-151.0,0.00016196,2]
[394436331,1763571039966,-100000.0,0.00016196,2]
[394436332,1763571039976,-151.0,0.000163,2]
[394436333,1763571039987,-825.08663804,0.00016411,2]
[394436334,1763571039997,-3000.0,0.00016412,2]
[394436335,1763571040009,-500.0,0.00016438,2]
[394436336,1763571040019,-500.0,0.00016438,2]
[394436337,1763571040029,-500.0,0.00016438,2]
[394436338,1763571040038,-500.0,0.00016438,2]
[394436339,1763571040048,-500.0,0.00016438,2]
[394436340,1763571040057,-500.0,0.00016438,2]
[394436341,1763571040066,-500.0,0.00016438,2]
[394436342,1763571040076,-500.0,0.00016438,2]
[394436343,1763571040085,-500.0,0.00016438,2]
[394436344,1763571040095,-500.0,0.00016438,2]
[394436345,1763571040104,-500.0,0.00016438,2]
[394436346,1763571040112,-500.0,0.00016438,2]
[394436347,1763571040124,-173.42395784,0.00016438,2]
[394436348,1763571040134,-500.0,0.00016438,2]
[394436349,1763571040143,-500.0,0.00016438,2]
[394436350,1763571040153,-500.0,0.00016438,2]
[394436351,1763571040162,-200.0,0.00016438,2]
[394436352,1763571040178,-500.0,0.00016438,2]
[394436353,1763571040188,-500.0,0.00016438,2]
[394436354,1763571040197,-500.0,0.00016438,2]
[394436355,1763571040207,-500.0,0.00016438,2]
[394436356,1763571040216,-500.0,0.00016438,2]
[394436357,1763571040226,-500.0,0.00016438,2]
[394436358,1763571040236,-500.0,0.00016438,2]
[394436359,1763571040245,-500.0,0.00016438,2]
[394436360,1763571040254,-500.0,0.00016438,2]
[394436361,1763571040264,-500.0,0.00016438,2]
[394436362,1763571040273,-500.0,0.00016438,2]
[394436363,1763571040282,-500.0,0.00016438,2]
[394436364,1763571040291,-645.69328667,0.00016438,2]
[394436365,1763571040300,-500.0,0.00016438,2]
[394436366,1763571040309,-500.0,0.00016438,2]
[394436367,1763571040319,-500.0,0.00016438,2]
[394436368,1763571040328,-500.0,0.00016438,2]
[394436369,1763571040337,-500.0,0.00016438,2]
[394436370,1763571040347,-500.0,0.00016438,2]
[394436371,1763571040356,-500.0,0.00016438,2]
[394436372,1763571040366,-500.0,0.00016438,2]
[394436373,1763571040378,-500.0,0.00016438,2]
[394436374,1763571040388,-500.0,0.00016438,2]
[394436375,1763571040397,-500.0,0.00016438,2]
[394436376,1763571040407,-500.0,0.00016438,2]
[394436377,1763571040416,-500.0,0.00016438,2]
[394436378,1763571040426,-500.0,0.00016438,2]
[394436379,1763571040435,-628.17717165,0.00016438,2]
[394436380,1763571040444,-500.0,0.00016438,2]
[394436381,1763571040456,-500.0,0.00016438,2]
[394436382,1763571040466,-500.0,0.00016438,2]
[394436383,1763571040477,-500.0,0.00016438,2]
[394436384,1763571040486,-500.0,0.00016438,2]
[394436385,1763571040496,-500.0,0.00016438,2]
[394436386,1763571040506,-500.0,0.00016438,2]
[394436387,1763571040516,-500.0,0.00016438,2]
[394436388,1763571040526,-500.0,0.00016438,2]
[394436389,1763571040535,-500.0,0.00016438,2]
[394436390,1763571040545,-500.0,0.00016438,2]
[394436391,1763571040554,-500.0,0.00016438,2]
[394436392,1763571040563,-500.0,0.00016438,2]
[394436393,1763571040573,-500.0,0.00016438,2]
[394436394,1763571040582,-500.0,0.00016438,2]
[394436395,1763571040591,-500.0,0.00016438,2]
[394436396,1763571040601,-500.0,0.00016438,2]
[394436397,1763571040610,-500.0,0.00016438,2]
[394436398,1763571040622,-500.0,0.00016438,2]
[394436399,1763571040632,-500.0,0.00016438,2]
[394436400,1763571040641,-500.0,0.00016438,2]
[394436401,1763571040650,-500.0,0.00016438,2]
[394436402,1763571040660,-500.0,0.00016438,2]
[394436403,1763571040670,-500.0,0.00016438,2]
[394436404,1763571040680,-500.0,0.00016438,2]
[394436405,1763571040690,-500.0,0.00016438,2]
[394436406,1763571040700,-449.73920102,0.00016438,2]
[394436407,1763571040781,-500.0,0.00016438,2]
[394436408,1763571040801,-500.0,0.00016438,2]
[394436409,1763571040811,-500.0,0.00016438,2]
[394436410,1763571040821,-500.0,0.00016438,2]
[394436411,1763571040831,-500.0,0.00016438,2]
[394436412,1763571040841,-500.0,0.00016438,2]
[394436413,1763571040851,-500.0,0.00016438,2]
[394436414,1763571040861,-500.0,0.00016438,2]
[394436415,1763571040874,-500.0,0.00016438,2]
[394436416,1763571040884,-500.0,0.00016438,2]
[394436417,1763571040894,-500.0,0.00016438,2]
[394436418,1763571040905,-500.0,0.00016438,2]
[394436419,1763571040914,-500.0,0.00016438,2]
[394436420,1763571040923,-500.0,0.00016438,2]
[394436421,1763571040933,-500.0,0.00016438,2]
[394436422,1763571040943,-500.0,0.00016438,2]
[394436423,1763571040952,-500.0,0.00016438,2]
[394436424,1763571040962,-500.0,0.00016438,2]
[394436425,1763571040973,-500.0,0.00016438,2]
[394436426,1763571040983,-500.0,0.00016438,2]
[394436427,1763571040992,-500.0,0.00016438,2]
[394436428,1763571041002,-500.0,0.00016438,2]
[394436429,1763571041012,-500.0,0.00016438,2]
[394436430,1763571041021,-500.0,0.00016438,2]
[394436431,1763571041031,-500.0,0.00016438,2]
[394436432,1763571041040,-500.0,0.00016438,2]
[394436433,1763571041050,-558.41505035,0.00016442,2]
[394436434,1763571041060,-500.0,0.0001645,2]
[394436435,1763571041069,-500.0,0.0001645,2]
[394436436,1763571041079,-500.0,0.0001645,2]
[394436437,1763571041088,-500.0,0.0001645,2]
[394436438,1763571041097,-500.0,0.0001645,2]
[394436439,1763571041106,-500.0,0.0001645,2]
[394436440,1763571041115,-500.0,0.0001645,2]
[394436441,1763571041128,-500.0,0.0001645,2]
[394436442,1763571041138,-500.0,0.0001645,2]
[394436443,1763571041147,-500.0,0.00016492,2]
[394436444,1763571041156,-500.0,0.00016492,2]
[394436445,1763571041166,-302.73913543,0.00016516,2]
[394436446,1763571041175,-823.0,0.00016531,2]
[394436447,1763571041184,-150.0,0.00016703,2]
[394436448,1763571041193,-150.0,0.00016703,2]
[394436449,1763571041202,-1008.7135632,0.00016721,2]
[394436450,1763571041211,-520.37042253,0.00016721,2]
[394436451,1763571041221,-455.285,0.00016721,2]
[394436452,1763571041229,-1000.0,0.00016721,2]
[394436453,1763571041239,-1000.0,0.00016721,2]
[394436454,1763571041248,-500.0,0.00016721,2]
[394436455,1763571041258,-1106.05005101,0.00016809,2]
[394436456,1763571041267,-784.96541301,0.0001696,2]
[394436457,1763571041277,-1000.0,0.00016998,2]
[394436458,1763571041287,-309.59582408,0.00016998,2]
[394436459,1763571041296,-579.97833016,0.00016998,2]
[394436460,1763571041305,-1000.0,0.00016998,2]
[394436461,1763571041314,-1000.0,0.00016998,2]
[394436462,1763571041324,-187.79654467,0.00017028,2]
[394436463,1763571041333,-506.86425752,0.0001704,2]
[394436464,1763571041342,-504.76291917,0.0001704,2]
[394436465,1763571041352,-535.87367997,0.00017049,2]
[394436466,1763571041361,-151.0,0.000171,2]
[394436467,1763571041373,-1000.0,0.00017186,2]
[394436468,1763571041382,-1008.93431054,0.00017268,2]
[394436469,1763571041391,-1500.0,0.00017268,2]
[394436470,1763571041400,-289.1339922,0.00017295,2]
[394436471,1763571041409,-1500.0,0.00017546,2]
[394436472,1763571041419,-1500.0,0.00017546,2]
[394436473,1763571041428,-1500.0,0.00017546,2]
[394436474,1763571041437,-151.0,0.000178,2]
[394436475,1763571041446,-2000.0,0.00017816,2]
[394436476,1763571041457,-236.82107529,0.00017921,2]
[394436477,1763571041468,-172.69518585,0.00017965,2]
[394436478,1763571041478,-7642.5210932,0.00017987,2]
[394436479,1763571041487,-1000.0,0.00018094,2]
[394436480,1763571041497,-500.0,0.00018094,2]
[394436481,1763571041506,-1152.0,0.00018137,2]
[394436482,1763571041516,-446.31080594,0.00018364,2]
[394436483,1763571041525,-151.0,0.000185,2]
[394436484,1763571041536,-342.80755042,0.00018516,2]
[394436485,1763571041545,-472.84134595,0.00018625,2]
[394436486,1763571041555,-160.0,0.00018638,2]
[394436487,1763571041564,-160.0,0.00018639,2]
[394436488,1763571041573,-400.87691731,0.00018639,2]
[394436489,1763571041583,-964.57262394,0.00018646,2]
[394436490,1763571041593,-740.05155823,0.00018711,2]
[394436491,1763571041602,-686.21927329,0.00018711,2]
[394436492,1763571041612,-1000.0,0.00018905,2]
[394436493,1763571041622,-244.0,0.00018905,2]
[394436494,1763571041631,-168.0,0.00018919,2]
[394436495,1763571041640,-2151.0,0.00019041,2]
[394436496,1763571041649,-630.0,0.00019041,2]
[394436497,1763571041657,-989.0,0.00019041,2]
[394436498,1763571041666,-414.0,0.00019041,2]
[394436499,1763571041675,-690.7807434,0.00019254,2]
[394436500,1763571041685,-581.49276814,0.00019299,2]
[394436501,1763571041694,-151.0,0.000193,2]
[394436502,1763571041703,-150.0,0.00019703,2]
[394436503,1763571041712,-947.28430116,0.00019719,2]
[394436504,1763571041722,-162.09360434,0.00019781,2]
[394436505,1763571041731,-648.37441736,0.00019781,2]
[394436506,1763571041741,-7841.0,0.000199,2]
[394436507,1763571041750,-1613.0,0.00019901,2]
[394436508,1763571041759,-781.33674426,0.00019972,2]
[394436509,1763571041768,-1094.151777,0.00020187,2]
[394436510,1763571041777,-168.0,0.00020263,2]
[394436511,1763571041786,-342.97982365,0.00020383,2]
[394436512,1763571041795,-382.8759654,0.00020516,2]
[394436513,1763571041804,-1554.25667266,0.00020541,2]
[394436514,1763571041813,-517.67,0.00020585,2]
[394436515,1763571041822,-183.731,0.00020585,2]
[394436516,1763571041832,-1026.37570087,0.00020704,2]
[394436517,1763571041841,-732.042925,0.00020723,2]
[394436518,1763571041850,-1000.0,0.00020795,2]
[394436519,1763571041859,-492.0,0.00020795,2]
[394436520,1763571041869,-211.44198771,0.00020822,2]
[394436521,1763571041880,-1046.68698265,0.00021172,2]
[394436522,1763571041889,-12781.87005616,0.000215,2]
[394436523,1763571041900,-2131.3896776,0.00021517,2]
[394436524,1763571041911,-1351.23289058,0.00021659,2]
[394436525,1763571041920,-5107.13979692,0.00021818,2]
[394436526,1763571041930,-3191.9272428,0.00021826,2]
[394436527,1763571041939,-2763.12297362,0.0002183,2]
[394436528,1763571041948,-2258.0,0.00021835,2]
[394436529,1763571041957,-656.41,0.00021917,2]
[394436530,1763571041966,-218.240269,0.00021918,2]
[394436531,1763571041976,-218.240269,0.00021918,2]
[394436532,1763571041985,-218.240269,0.00021918,2]
[394436533,1763571041995,-218.240269,0.00021918,2]
[394436534,1763571042004,-705.38628593,0.00021918,7]
[394436535,1763571042013,-525.19125575,0.00021918,7]
[394436536,1763571042022,-2098.664258,0.00021918,7]
[394436537,1763571042033,-500.0,0.00021973,2]
[394436538,1763571042042,-501.45708738,0.00021973,2]
[394436539,1763571042051,-500.0,0.00021973,2]
[394436540,1763571042060,-500.0,0.00021973,2]
[394436541,1763571042070,-500.0,0.00021973,2]
[394436542,1763571042080,-500.0,0.00021973,2]
[394436543,1763571042089,-500.0,0.00021973,2]
[394436544,1763571042098,-500.0,0.00021973,2]
[394436545,1763571042107,-303293.22,0.00022,2]
[394436546,1763571042116,-1864.98,0.00022,14]
[394436547,1763571042127,-1004.76,0.00022,7]
[394436548,1763571042136,-218.240269,0.00022,2]
[394436549,1763571042145,-218.240269,0.00022,2]
[394436550,1763571042155,-218.240269,0.00022,2]
[394436551,1763571042165,-218.240269,0.00022,2]
[394436552,1763571042174,-2151.0,0.00022041,2]
[394436553,1763571042184,-630.0,0.00022041,2]
[394436554,1763571042193,-989.0,0.00022041,2]
[394436555,1763571042202,-414.0,0.00022041,2]
[394436556,1763571042211,-617.36368256,0.00022321,2]
[394436557,1763571042221,-422.94438039,0.00022516,2]
[394436558,1763571042230,-254.90111712,0.00022521,2]
[394436559,1763571042239,-1047.13375357,0.00022521,2]
[394436562,1763571042321,-635.62671406,0.00022521,2]
[394436563,1763571042330,-1000.0,0.00022521,2]
[394436565,1763571042340,-1000.0,0.00022521,2]
[394436567,1763571042349,-1000.0,0.00022875,20]
[394436568,1763571042359,-791.0,0.00022875,20]
[394436569,1763571042368,-656.41,0.00023013,2]
[394436570,1763571042379,-232.268042,0.00023014,2]
[394436571,1763571042388,-1500.0,0.00023068,2]
[394436572,1763571042397,-1500.0,0.00023068,2]
[394436573,1763571042406,-153.24044713,0.00023403,7]
[394436574,1763571042414,-2000.0,0.00023499,7]
[394436575,1763571042423,-7642.5210932,0.00023557,2]
[394436576,1763571042432,-2000.0,0.00023616,2]
[394436577,1763571042442,-2000.0,0.00023616,2]
[394436578,1763571042451,-612.34882674,0.00023754,7]
[394436579,1763571042461,-763.0,0.00023957,2]
[394436580,1763571042473,-656.41,0.00024109,2]
[394436581,1763571042482,-487.60993652,0.00024127,7]
[394436582,1763571042492,-312.04659332,0.00024133,7]
[394436583,1763571042501,-2500.0,0.00024164,2]
[394436584,1763571042511,-1812.10143534,0.00024164,2]
[394436585,1763571042520,-1004.76,0.000243,7]
[394436586,1763571042530,-1948.48930634,0.00024489,7]
[394436587,1763571042539,-1246.93818692,0.00024494,7]
[394436588,1763571042550,-463.01279537,0.00024516,2]
[394436589,1763571042560,-200.0,0.00024649,2]
[394436590,1763571042569,-156195.54785904,0.0002465,2]
[394436591,1763571042578,-511.91515226,0.0002465,2]
[394436592,1763571042588,-380.0,0.00024658,2]
[394436593,1763571042598,-200.0,0.00024658,2]
[394436594,1763571042608,-151.0,0.00024658,7]
[394436595,1763571042617,-151.0,0.00024658,7]
[394436596,1763571042628,-151.991415,0.00024658,7]
[394436597,1763571042637,-151.0,0.00024658,7]
[394436598,1763571042646,-151.0,0.00024658,7]
[394436599,1763571042655,-154.811422,0.00024658,7]
[394436600,1763571042665,-151.0,0.00024658,7]
[394436601,1763571042673,-151.0,0.00024658,7]
[394436602,1763571042682,-151.0,0.00024658,7]
[394436603,1763571042691,-151.0,0.00024658,7]
[394436604,1763571042700,-151.0,0.00024658,7]
[394436605,1763571042709,-151.0,0.00024658,7]
[394436606,1763571042718,-151.0,0.00024658,7]
[394436607,1763571042727,-151.0,0.00024658,7]
[394436608,1763571042736,-151.0,0.00024658,7]
[394436609,1763571042745,-151.0,0.00024658,7]
[394436610,1763571042754,-151.0,0.00024658,7]
[394436611,1763571042763,-151.0,0.00024658,7]
[394436612,1763571042771,-151.0,0.00024658,7]
[394436613,1763571042781,-151.0,0.00024658,7]
[394436614,1763571042791,-151.0,0.00024658,7]
[394436615,1763571042800,-151.0,0.00024658,7]
[394436616,1763571042809,-151.0,0.00024658,7]
[394436617,1763571042818,-151.0,0.00024658,7]
[394436618,1763571042827,-151.0,0.00024658,7]
[394436619,1763571042836,-151.0,0.00024658,7]
[394436620,1763571042845,-151.0,0.00024658,7]
[394436621,1763571042854,-151.0,0.00024658,7]
[394436622,1763571042864,-151.0,0.00024658,7]
[394436623,1763571042876,-151.0,0.00024658,7]
[394436624,1763571042885,-151.0,0.00024658,7]
[394436625,1763571042895,-151.0,0.00024658,7]
[394436626,1763571042904,-151.0,0.00024658,7]
[394436627,1763571042914,-151.0,0.00024658,7]
[394436628,1763571042924,-151.0,0.00024658,7]
[394436629,1763571042933,-282.492412,0.00024658,7]
[394436630,1763571042943,-151.0,0.00024658,7]
[394436631,1763571042953,-151.0,0.00024658,7]
[394436632,1763571042963,-151.0,0.00024658,7]
[394436633,1763571042973,-693.333611,0.00024658,7]
[394436634,1763571042982,-693.333611,0.00024658,7]
[394436635,1763571042991,-693.333611,0.00024658,7]
[394436636,1763571043001,-693.333611,0.00024658,7]
[394436637,1763571043012,-693.333611,0.00024658,7]
[394436638,1763571043022,-693.333611,0.00024658,7]
[394436639,1763571043032,-693.333611,0.00024658,7]
[394436640,1763571043042,-693.333611,0.00024658,7]
[394436641,1763571043052,-151.0,0.00024658,7]
[394436642,1763571043062,-151.0,0.00024658,7]
[394436643,1763571043072,-151.0,0.00024658,7]
[394436644,1763571043082,-151.0,0.00024658,7]
[394436645,1763571043092,-154.522416,0.00024658,7]
[394436646,1763571043102,-151.0,0.00024658,7]
[394436647,1763571043111,-151.0,0.00024658,7]
[394436648,1763571043125,-151.0,0.00024658,7]
[394436649,1763571043134,-151.0,0.00024658,7]
[394436650,1763571043143,-151.0,0.00024658,7]
[394436651,1763571043153,-151.0,0.00024658,7]
[394436652,1763571043163,-151.0,0.00024658,7]
[394436653,1763571043172,-151.0,0.00024658,7]
[394436654,1763571043182,-204.36082,0.00024658,7]
[394436655,1763571043192,-151.0,0.00024658,7]
[394436656,1763571043201,-151.0,0.00024658,7]